bitfinex/quotes_ETHUSD_20240713
["timestamp","ask_amount","ask_price","bid_price","bid_amount"]
[1720839238989,2.44399481,3135.5,3135.4,7.51371]
[1720839239151,2.44399481,3135.5,3135.4,7.65280436]
[1720839239885,1.10469191,3135.5,3135.4,7.65280436]
[1720839240874,1.67302495,3135.6,3135.4,3.18766436]
[1720839241076,0.33372205,3135.6,3135.5,6.69747]
[1720839241281,1.43841678,3135.6,3135.5,7.68599044]
[1720839241445,1.33928051,3135.6,3135.5,10.04689044]
[1720839241649,1.10468175,3135.6,3135.5,10.04689044]
[1720839242180,1.10468175,3135.6,3135.5,10.18590037]
[1720839244150,1.33928051,3135.7,3135.6,6.69726]
[1720839244471,2.4439118,3135.7,3135.6,8.05489795]
[1720839245751,2.4439118,3135.7,3135.6,8.19379346]
[1720839246844,0.33368736,3136.0,3135.9,4.46442]
[1720839247088,1.4383237,3136.0,3135.9,5.28042]
[1720839248147,1.4383237,3136.0,3135.9,5.41906227]
[1720839251081,1.43831292,3136.0,3135.9,5.41906227]
[1720839251585,1.43831279,3136.0,3135.9,5.41906227]
[1720839251761,1.43831279,3136.0,3135.9,6.1841945]
[1720839254387,0.33368736,3136.0,3135.9,8.4164045]
[1720839254563,2.5428947,3136.0,3135.9,8.4164045]
[1720839257886,2.54289767,3136.0,3135.9,8.4164045]
[1720839258389,4.21680714,3136.0,3135.9,8.4164045]
[1720839260977,1.43829074,3136.0,3135.9,8.4164045]
[1720839261178,2.54284646,3136.0,3135.9,8.4164045]
[1720839261487,3.88177062,3136.0,3135.9,8.4164045]
[1720839264464,3.88173926,3136.0,3135.9,8.4164045]
[1720839264664,4.98627999,3136.0,3135.9,8.4164045]
[1720839265065,4.98625467,3136.0,3135.9,8.4164045]
[1720839266164,2.77713105,3136.0,3135.9,8.4164045]
[1720839267812,2.77712738,3136.0,3135.9,8.4164045]
[1720839267967,2.77712764,3136.0,3135.9,8.4164045]
[1720839269476,1.10451612,3136.0,3135.9,10.6486145]
[1720839269812,0.0638,3136.3,3136.2,6.696]
[1720839269969,1.16814658,3136.3,3136.2,10.6201]
[1720839270509,0.0638,3136.3,3136.2,13.6201]
[1720839270812,1.16810143,3136.3,3136.2,13.6201]
[1720839270967,0.0638,3136.3,3136.2,13.6201]
[1720839271303,1.16812088,3136.3,3136.2,13.6201]
[1720839271474,0.0638,3136.3,3136.2,13.75609258]
[1720839275113,0.0638,3136.3,3136.2,15.98809258]
[1720839275315,0.0638,3136.3,3136.2,13.54959258]
[1720839279727,0.0638,3136.3,3136.2,15.98809258]
[1720839283378,1.3370345,3136.9,3136.8,6.69471]
[1720839283503,3.7236345,3137.1,3137.0,4.46286]
[1720839283832,4.82784328,3137.1,3137.0,5.27886]
[1720839284030,4.82784328,3137.1,3137.0,5.41417763]
[1720839284411,3.49080878,3137.1,3137.0,5.41417763]
[1720839284807,2.3866,3137.1,3137.0,4.59817763]
[1720839285012,3.4908239,3137.1,3137.0,5.41417763]
[1720839286199,4.82739683,3137.1,3137.0,5.41417763]
[1720839286401,3.4908239,3137.1,3137.0,5.41417763]
[1720839286634,4.82729773,3137.1,3137.0,5.41417763]
[1720839288115,3.72307383,3137.1,3137.0,5.41417763]
[1720839288315,4.82714299,3137.1,3137.0,5.41417763]
[1720839288699,3.72293113,3137.1,3137.0,5.41417763]
[1720839288904,4.82714287,3137.1,3137.0,5.41417763]
[1720839289536,2.44054287,3137.1,3137.0,5.41417763]
[1720839289733,1.10421174,3137.1,3137.0,5.41417763]
[1720839290733,1.66994458,3137.2,3137.1,4.46272]
[1720839291045,1.66994458,3137.2,3137.1,4.59789178]
[1720839291046,2.77415349,3137.2,3137.1,4.59789178]
[1720839291611,2.77395934,3137.2,3137.1,4.59789178]
[1720839294904,1.66974636,3137.2,3137.1,4.59789178]
[1720839295111,0.33361345,3137.2,3137.1,4.59789178]
[1720839295311,1.43784103,3137.2,3137.1,4.59789178]
[1720839295536,2.773918,3137.2,3137.1,4.59789178]
[1720839295735,1.43784103,3137.2,3137.1,4.59789178]
[1720839295951,2.77392493,3137.2,3137.1,4.59789178]
[1720839296246,1.43784103,3137.2,3137.1,4.59789178]
[1720839298480,0.33361345,3137.2,3137.1,4.59789178]
[1720839298744,0.33361345,3137.2,3137.1,5.26749178]
[1720839299312,1.4377532,3137.2,3137.1,5.26749178]
[1720839300259,1.10413975,3137.2,3137.1,7.49885178]
[1720839301133,1.33608705,3137.5,3137.4,4.46228]
[1720839301317,1.10401298,3137.5,3137.4,5.947625]
[1720839301677,1.33608705,3137.6,3137.5,4.46214]
[1720839301943,2.44011565,3137.6,3137.5,4.46214]
[1720839302113,1.1040286,3137.6,3137.5,4.46214]
[1720839302317,2.44011565,3137.6,3137.5,4.5968884]
[1720839302919,4.85951565,3137.6,3137.5,2.3658184]
[1720839303156,3.5234286,3137.6,3137.5,3.1818184]
[1720839303525,5.19354395,3137.6,3137.5,3.1818184]
[1720839304356,3.5234286,3137.6,3137.5,3.1818184]
[1720839304673,5.19369629,3137.6,3137.5,3.1818184]
[1720839306380,3.52351839,3137.6,3137.5,3.1818184]
[1720839306680,5.19369629,3137.6,3137.5,3.1818184]
[1720839307168,3.5234623,3137.6,3137.5,3.1818184]
[1720839307730,2.4194,3137.6,3137.5,3.1818184]
[1720839308055,3.52347216,3137.6,3137.5,3.1818184]
[1720839308250,1.10407216,3137.6,3137.5,5.4128884]
[1720839308423,2.00422572,3137.7,3137.6,2.231]
[1720839308627,3.10825765,3137.7,3137.6,2.231]
[1720839309280,1.43761242,3137.7,3137.6,2.36542212]
[1720839309480,3.10825765,3137.7,3137.6,2.36542212]
[1720839309792,3.10825765,3137.7,3137.6,4.59642212]
[1720839310561,3.85701242,3137.7,3137.6,4.59642212]
[1720839310766,3.85701242,3137.7,3137.6,3.18142212]
[1720839310988,3.85701242,3137.7,3137.6,3.047]
[1720839311193,3.85701242,3137.7,3137.6,3.18141213]
[1720839311596,5.86178669,3137.7,3137.6,3.18141213]
[1720839311892,3.85701242,3137.7,3137.6,3.18141213]
[1720839312491,5.86273302,3137.7,3137.6,0.95041213]
[1720839314072,3.85710491,3137.7,3137.6,0.95041213]
[1720839314625,5.86273302,3137.7,3137.6,0.95041213]
[1720839314759,3.85710491,3137.7,3137.6,0.95041213]
[1720839314951,3.85710491,3137.7,3137.6,3.18141213]
[1720839315158,1.43770491,3137.7,3137.6,3.18141213]
[1720839315353,1.43759357,3137.7,3137.6,3.18141213]
[1720839315662,3.44437658,3137.7,3137.6,3.18141213]
[1720839316023,1.43759357,3137.7,3137.6,3.18141213]
[1720839316170,3.44437658,3137.7,3137.6,3.18141213]
[1720839316497,1.43759357,3137.7,3137.6,3.18141213]
[1720839317057,3.44516272,3137.7,3137.6,3.18141213]
[1720839317503,1.43759357,3137.7,3137.6,3.18141213]
[1720839317690,5.8645949,3137.7,3137.6,3.18141213]
[1720839317998,5.8645949,3137.7,3137.6,0.95041213]
[1720839318205,3.85699357,3137.7,3137.6,0.95041213]
[1720839318499,3.85699357,3137.7,3137.6,0.13441213]
[1720839318698,3.85713772,3137.7,3137.6,0.13441213]
[1720839320779,6.81940868,3137.7,3137.6,0.13441213]
[1720839320969,4.47708396,3137.7,3137.6,0.13441213]
[1720839321179,2.4194,3137.6,3137.1,3.04734]
[1720839321384,4.48481197,3137.2,3137.1,3.04734]
[1720839321586,5.5889692,3137.2,3137.1,3.04734]
[1720839321990,4.48491835,3137.2,3137.1,3.04734]
[1720839322295,5.58917937,3137.2,3137.1,3.04734]
[1720839322472,2.4767,3137.2,3137.1,3.04734]
[1720839322669,5.58932534,3137.2,3137.1,3.04734]
[1720839323073,5.58932534,3137.2,3137.1,0.816]
[1720839323302,5.58935685,3137.2,3137.1,0.816]
[1720839325190,5.58961484,3137.2,3137.1,0.816]
[1720839325397,2.4767,3137.2,3137.1,0.816]
[1720839325599,2.4767,3137.2,3136.8,9.64153]
[1720839325600,4.68525451,3137.2,3136.8,9.64153]
[1720839325916,3.58097722,3137.2,3137.1,0.816]
[1720839326131,7.02891274,3137.2,3137.1,0.816]
[1720839326832,7.02891274,3137.2,3136.9,0.816]
[1720839327124,1.10437305,3137.1,3136.9,0.816]
[1720839328381,2.00855384,3137.0,3136.9,0.816]
[1720839328640,3.11292689,3137.0,3136.9,0.816]
[1720839328788,1.10437305,3137.0,3136.9,0.816]
[1720839328989,3.11288809,3137.0,3136.9,0.816]
[1720839329534,1.10433563,3137.0,3136.9,0.816]
[1720839330089,3.11264743,3137.0,3136.9,0.816]
[1720839330895,1.10433563,3137.0,3136.9,0.816]
[1720839331096,1.10433563,3137.0,3136.9,0.95105776]
[1720839331600,1.10433563,3137.0,3136.9,3.18255776]
[1720839332198,2.4767,3137.2,3136.9,3.18255776]
[1720839332417,3.11230267,3137.1,3136.9,2.90796454]
[1720839332617,1.10429064,3137.0,3136.9,2.90796454]
[1720839332797,2.00801203,3137.1,3137.0,0.816]
[1720839333294,3.11230872,3137.1,3137.0,0.816]
[1720839333500,3.11230872,3137.1,3137.0,0.95097341]
[1720839335214,2.00801203,3137.1,3137.0,0.95097341]
[1720839335511,2.4767,3137.2,3137.0,0.95097341]
[1720839335722,3.11193823,3137.1,3137.0,0.95097341]
[1720839336130,3.11193823,3137.1,3137.0,3.18240341]
[1720839336327,1.1042801,3137.1,3137.0,3.72379475]
[1720839337607,1.1042801,3137.1,3137.0,3.18240341]
[1720839339134,1.10423418,3137.1,3137.0,3.18240341]
[1720839342513,1.10426223,3137.1,3137.0,3.18240341]
[1720839342918,0.33359652,3137.4,3137.0,3.18240341]
[1720839343123,1.10424927,3137.1,3137.0,2.36640341]
[1720839343330,1.10424927,3137.1,3137.0,3.18240341]
[1720839345022,3.11170209,3137.1,3137.0,3.18240341]
[1720839345549,1.1043135,3137.1,3137.0,3.18240341]
[1720839345946,2.00745789,3137.2,3137.0,3.18240341]
[1720839346117,1.10429352,3137.1,3137.0,3.18240341]
[1720839349249,2.00746255,3137.2,3137.0,0.95097341]
[1720839349571,3.11207317,3137.1,3137.0,0.95097341]
[1720839352652,2.56474652,3137.4,3137.0,0.95097341]
[1720839352862,3.11227763,3137.1,3137.0,0.95097341]
[1720839353221,3.11234649,3137.1,3137.0,0.95097341]
[1720839354746,1.10430742,3137.1,3137.0,0.95097341]
[1720839355860,1.10434161,3137.1,3137.0,0.95097341]
[1720839356037,4.70959,3137.2,3137.0,0.95097341]
[1720839356234,1.10434142,3137.1,3137.0,0.95097341]
[1720839356752,3.33570142,3137.1,3137.0,0.95097341]
[1720839359429,2.23136,3137.1,3137.0,0.95097341]
[1720839359859,3.3357301,3137.1,3137.0,0.95097341]
[1720839360157,5.5670901,3137.1,3137.0,0.95097341]
[1720839360458,6.60598831,3137.1,3137.0,0.95097341]
[1720839361026,6.60598831,3137.1,3137.0,0.13497341]
[1720839361624,2.2315,3136.9,3136.8,0.816]
[1720839361871,3.3358701,3136.9,3136.8,0.816]
[1720839362045,2.2315,3136.9,3136.8,0.816]
[1720839362240,5.68061148,3136.9,3136.8,0.816]
[1720839362787,5.68044868,3136.9,3136.8,0.816]
[1720839365149,3.33596902,3136.9,3136.8,0.816]
[1720839365549,3.33598098,3136.9,3136.8,0.816]
[1720839365756,5.68098391,3136.9,3136.8,0.816]
[1720839366064,3.33598098,3136.9,3136.8,0.816]
[1720839367566,3.33598098,3136.9,3136.2,2.4301]
[1720839367567,2.23169,3136.7,3136.6,0.816]
[1720839367734,2.3406,3136.6,3136.1,7.41]
[1720839367936,2.232,3136.2,3136.1,7.41]
[1720839368137,2.232,3136.2,3136.1,0.816]
[1720839368340,3.33664529,3136.2,3136.1,0.816]
[1720839368950,2.232,3136.2,3136.1,0.816]
[1720839369194,5.67724769,3136.2,3136.1,0.816]
[1720839369681,8.0215783,3136.2,3136.1,0.816]
[1720839369852,10.2535783,3136.2,3136.1,0.816]
[1720839370041,2.23213,3136.1,3135.9,0.816]
[1720839370240,1.10464769,3136.0,3135.9,0.816]
[1720839370464,3.33678769,3136.0,3135.9,0.816]
[1720839370668,5.3447965,3136.0,3135.9,0.816]
[1720839372358,2.23214,3136.0,3135.9,0.816]
[1720839372557,5.34417311,3136.0,3135.9,0.816]
[1720839372976,5.34358796,3136.0,3135.9,0.816]
[1720839373948,3.33692393,3136.0,3135.9,0.816]
[1720839375550,3.33691647,3136.0,3135.9,0.816]
[1720839376052,5.56905647,3136.0,3135.9,0.816]
[1720839376257,5.56905647,3136.0,3135.9,0.95195402]
[1720839379089,4.46428,3136.0,3135.9,0.95195402]
[1720839379289,5.56906667,3136.0,3135.9,0.95195402]
[1720839379770,5.56906667,3136.0,3135.9,0.816]
[1720839382185,7.23800803,3136.0,3135.9,0.816]
[1720839382680,7.23799192,3136.0,3135.9,0.816]
[1720839383199,7.23787043,3136.0,3135.9,0.816]
[1720839383786,5.56905353,3136.0,3135.9,0.816]
[1720839385491,7.2377009,3136.0,3135.9,0.816]
[1720839385698,7.23772049,3136.0,3135.9,0.816]
[1720839385882,5.56906889,3136.0,3135.9,0.816]
[1720839386093,4.46428,3136.0,3135.9,0.816]
[1720839386278,5.56908874,3136.0,3135.9,0.816]
[1720839389407,4.46428,3136.0,3135.9,0.816]
[1720839389614,5.56909026,3136.0,3135.9,0.816]
[1720839392904,5.56910567,3136.0,3135.9,0.816]
[1720839393212,2.23249,3135.5,3135.4,7.41]
[1720839393412,2.23264,3135.3,3135.2,0.114]
[1720839393612,4.67267458,3135.3,3135.2,0.93]
[1720839393834,5.00647534,3135.3,3135.2,0.93]
[1720839395791,5.0065867,3135.3,3135.2,0.93]
[1720839396118,2.23264,3135.3,3135.2,0.93]
[1720839396331,5.00673857,3135.3,3135.2,0.93]
[1720839399522,3.90172602,3135.3,3135.2,0.93]
[1720839399748,9.56199105,3135.3,3135.2,0.114]
[1720839400059,11.08174413,3135.3,3135.2,0.114]
[1720839402654,13.41759381,3135.3,3135.2,0.114]
[1720839403016,13.41786136,3135.3,3135.2,0.114]
[1720839403248,11.08201168,3135.3,3135.2,0.114]
[1720839403637,13.41814438,3135.3,3135.2,0.114]
[1720839405970,11.08200416,3135.3,3135.2,0.114]
[1720839406139,13.41730202,3135.3,3135.2,0.114]
[1720839406339,9.9767191,3135.3,3135.2,0.114]
[1720839406540,11.08202084,3135.3,3135.2,0.114]
[1720839406742,15.6495068,3135.3,3135.2,0.114]
[1720839406971,18.6495068,3135.3,3135.2,0.114]
[1720839407178,16.31466084,3135.3,3135.2,0.114]
[1720839407469,18.64905354,3135.3,3135.2,0.114]
[1720839409568,18.64921268,3135.3,3135.2,0.114]
[1720839409767,15.2093591,3135.3,3135.2,0.114]
[1720839410097,18.64924355,3135.3,3135.2,0.114]
[1720839411763,16.31469194,3135.3,3135.2,0.114]
[1720839412174,18.64924355,3135.3,3135.2,0.114]
[1720839413093,15.2093591,3135.3,3135.2,0.114]
[1720839413392,18.64965922,3135.3,3135.2,0.114]
[1720839413696,18.65013601,3135.3,3135.2,0.114]
[1720839416394,18.6499877,3135.3,3135.2,0.114]
[1720839416601,17.54467687,3135.3,3135.2,0.114]
[1720839416799,18.64999814,3135.3,3135.2,0.114]
[1720839419111,16.31468037,3135.3,3135.2,0.114]
[1720839419283,18.64984095,3135.3,3135.2,0.114]
[1720839420123,18.64981554,3135.3,3135.2,0.114]
[1720839420829,16.31467709,3135.3,3135.2,0.114]
[1720839421189,16.41724868,3135.3,3135.2,0.114]
[1720839421394,11.75943709,3135.3,3135.2,0.114]
[1720839422728,10.6541191,3135.3,3135.2,0.114]
[1720839423019,11.759386,3135.3,3135.2,0.114]
[1720839423221,15.20001152,3135.3,3135.2,0.114]
[1720839423789,12.8646494,3135.3,3135.2,0.114]
[1720839425603,9.526746,3135.3,3135.2,0.114]
[1720839425815,10.6319734,3135.3,3135.2,0.114]
[1720839426003,11.67772006,3135.3,3135.2,0.114]
[1720839426213,9.67568471,3135.3,3135.2,0.114]
[1720839427421,6.67568471,3135.3,3135.2,0.114]
[1720839427914,6.67568471,3135.3,3135.2,5.943527]
[1720839428235,6.67568471,3135.3,3135.2,6.07564225]
[1720839430312,5.5705469,3135.3,3135.2,6.07564225]
[1720839430830,6.67571806,3135.3,3135.2,6.07564225]
[1720839431331,4.44307806,3135.3,3135.2,6.07564225]
[1720839432036,3.3379069,3135.3,3135.2,6.07564225]
[1720839432746,1.10505458,3135.3,3135.2,6.07564225]
[1720839432944,1.10505458,3135.3,3135.2,8.99070647]
[1720839433234,1.10500115,3135.3,3135.2,8.99070647]
[1720839433436,1.10495382,3135.3,3135.2,8.99070647]
[1720839434510,1.10495382,3135.3,3135.2,11.22341647]
[1720839437543,0.33376413,3135.6,3135.3,4.54007]
[1720839437717,0.33376413,3135.6,3135.4,3.23009417]
[1720839438043,1.10485842,3135.5,3135.4,3.36192665]
[1720839438250,1.10485842,3135.5,3135.4,5.59449665]
[1720839440137,0.33376413,3135.6,3135.5,4.46498]
[1720839440338,0.33376413,3135.6,3135.5,7.58848]
[1720839440543,1.43849939,3135.6,3135.5,8.32772509]
[1720839441239,1.43851386,3135.6,3135.5,8.32772509]
[1720839444232,1.43851386,3135.6,3135.5,0.94768087]
[1720839444438,1.43851386,3135.6,3135.5,0.13168087]
[1720839444746,1.43860524,3135.6,3135.5,2.36417087]
[1720839447575,3.10747185,3135.6,3135.5,0.13168087]
[1720839448077,2.00262274,3135.6,3135.5,0.13163833]
[1720839448277,3.10746234,3135.6,3135.5,0.13163833]
[1720839448473,0.33376413,3135.6,3135.5,0.13163833]
[1720839448662,3.10741233,3135.6,3135.5,0.13163833]
[1720839449180,1.43864156,3135.6,3135.5,0.13163833]
[1720839450947,3.10741233,3135.6,3135.5,0.13163833]
[1720839451142,2.0025349,3135.6,3135.5,0.13163833]
[1720839451348,3.1074261,3135.6,3135.5,5.45282833]
[1720839451583,2.773459,3135.6,3135.5,6.22136316]
[1720839451949,2.773459,3135.6,3135.5,3.98887316]
[1720839452773,2.773459,3135.6,3135.5,3.22033833]
[1720839454995,1.43861456,3135.6,3135.5,0.94763833]
[1720839456261,1.43861456,3135.6,3135.5,0.13163833]
[1720839456880,1.43861456,3135.6,3135.5,0.13160396]
[1720839457273,1.43861456,3135.6,3135.2,9.032227]
[1720839457479,1.33536256,3135.3,3135.2,9.032227]
[1720839457674,2.44021299,3135.3,3135.2,9.032227]
[1720839458186,1.10496306,3135.3,3135.2,9.032227]
[1720839458662,1.10495893,3135.3,3135.2,9.032227]
[1720839461220,0.33376413,3135.6,3135.2,9.032227]
[1720839461372,1.67010145,3135.4,3135.2,9.032227]
[1720839461576,0.33376413,3135.6,3135.2,9.032227]
[1720839461877,1.67032088,3135.3,3135.2,9.032227]
[1720839462071,2.77528825,3135.3,3135.2,9.032227]
[1720839463478,2.77528825,3135.3,3135.2,11.264937]
[1720839463694,1.10496737,3135.3,3135.2,11.264937]
[1720839464102,2.4416538,3135.3,3135.2,13.497647]
[1720839465072,1.33668643,3135.3,3135.2,13.497647]
[1720839465306,1.10486782,3135.3,3135.2,13.497647]
[1720839466306,1.10486782,3135.3,3135.2,13.62952581]
[1720839466691,2.44226755,3135.3,3135.2,13.62952581]
[1720839467274,1.10486782,3135.3,3135.2,13.62952581]
[1720839467614,2.44226755,3135.3,3135.2,13.62952581]
[1720839468307,2.44288615,3135.3,3135.2,13.62952581]
[1720839468508,1.67252266,3135.4,3135.3,2.23264]
[1720839468809,2.77736033,3135.4,3135.3,2.23264]
[1720839469010,0.33376413,3135.6,3135.4,2.23251]
[1720839469317,2.34080945,3135.6,3135.5,0.816]
[1720839469614,3.44564639,3135.6,3135.5,0.9476255]
[1720839470692,3.44564639,3135.6,3135.5,3.1801155]
[1720839471095,1.43860107,3135.6,3135.5,3.1801155]
[1720839471281,3.44760444,3135.6,3135.5,3.1801155]
[1720839471483,3.44757106,3135.6,3135.5,3.1801155]
[1720839471707,1.43856769,3135.6,3135.5,5.5849155]
[1720839471904,0.33376413,3135.6,3135.5,6.36666105]
[1720839472105,1.43853419,3135.6,3135.5,6.36666105]
[1720839474088,3.44747112,3135.6,3135.5,6.36666105]
[1720839474691,3.44747112,3135.6,3135.5,8.59915105]
[1720839474890,1.43853419,3135.6,3135.5,8.59915105]
[1720839475133,3.44747112,3135.6,3135.5,8.59915105]
[1720839475331,0.33376413,3135.6,3135.5,8.59915105]
[1720839475628,1.43850277,3135.6,3135.5,8.59915105]
[1720839476930,3.4490634,3135.6,3135.5,8.59915105]
[1720839477929,1.43850277,3135.6,3135.5,8.59915105]
[1720839478733,1.43848949,3135.6,3135.5,8.59915105]
[1720839479106,0.33376413,3135.6,3135.5,8.59915105]
[1720839479314,1.43851983,3135.6,3135.5,8.59915105]
[1720839481366,1.43849897,3135.6,3135.5,8.59915105]
[1720839481832,1.43849681,3135.6,3135.5,8.59915105]
[1720839484321,3.44884116,3135.6,3135.5,7.8174055]
[1720839484739,3.44880923,3135.6,3135.5,7.8174055]
[1720839484915,3.44880932,3135.6,3135.5,7.8174055]
[1720839488149,1.43854101,3135.6,3135.5,7.8174055]
[1720839488349,4.55363066,3135.6,3135.5,8.59914605]
[1720839488548,3.44885148,3135.6,3135.5,8.59914605]
[1720839489046,1.43855164,3135.6,3135.5,8.59914605]
[1720839489642,3.44885148,3135.6,3135.5,8.59914605]
[1720839489844,1.43855164,3135.6,3135.5,8.59914605]
[1720839490037,3.44885148,3135.6,3135.5,8.59914605]
[1720839490417,1.43855164,3135.6,3135.5,8.59914605]
[1720839491650,0.33376413,3135.6,3135.5,8.59914605]
[1720839491852,3.44877689,3135.6,3135.5,8.59914605]
[1720839492049,0.33376413,3135.6,3135.5,8.59914605]
[1720839492348,0.33376413,3135.6,3135.5,6.19434605]
[1720839492349,2.3440245,3135.6,3135.5,6.19434605]
[1720839492551,3.44880096,3135.6,3135.5,5.4126055]
[1720839493152,0.33376413,3135.6,3135.5,0.1316255]
[1720839493452,0.33376413,3135.6,3135.5,0.9476255]
[1720839493648,1.43854866,3135.6,3135.5,0.816]
[1720839493860,1.43854866,3135.6,3135.5,0.94757266]
[1720839494662,1.43862473,3135.6,3135.5,0.94757266]
[1720839495214,1.43861343,3135.6,3135.5,0.94757266]
[1720839496151,1.43861343,3135.6,3135.5,0.13157266]
[1720839498469,0.33376413,3135.6,3135.5,0.13157266]
[1720839498633,1.43864239,3135.6,3135.5,0.13157266]
[1720839499538,3.78418882,3135.6,3135.5,0.13157266]
[1720839499744,3.78418882,3135.6,3135.4,0.816]
[1720839499954,1.10487826,3135.5,3135.4,0.816]
[1720839501829,2.67931056,3135.6,3135.4,0.816]
[1720839502065,1.1048921,3135.5,3135.4,0.816]
[1720839502369,0.33376413,3135.6,3135.4,0.816]
[1720839502546,1.10489098,3135.5,3135.4,0.816]
[1720839504947,1.10489585,3135.5,3135.4,0.816]
[1720839505351,2.67961836,3135.6,3135.4,0.816]
[1720839505551,1.10488562,3135.5,3135.4,0.816]
[1720839507251,1.10488761,3135.5,3135.4,0.816]
[1720839508856,1.10488389,3135.5,3135.4,0.816]
[1720839510264,1.10488389,3135.5,3135.4,3.04857]
[1720839511280,1.10488389,3135.5,3135.4,3.18017557]
[1720839512378,2.68011628,3135.6,3135.4,3.18017557]
[1720839512569,1.10488626,3135.5,3135.4,3.18017557]
[1720839512776,0.33376413,3135.6,3135.4,3.18017557]
[1720839512963,1.10486808,3135.5,3135.4,6.54837483]
[1720839513289,3.11590494,3135.5,3135.4,9.04637483]
[1720839513462,1.10486808,3135.5,3135.4,9.04637483]
[1720839514263,1.10486808,3135.5,3135.4,11.27894483]
[1720839514480,2.78050429,3135.5,3135.4,11.27894483]
[1720839515290,0.33374232,3136.0,3135.9,2.23221]
[1720839515470,0.33374232,3136.0,3135.9,3.04821]
[1720839515671,1.43841874,3136.0,3135.9,3.04821]
[1720839515884,1.43841874,3136.0,3135.9,3.17936013]
[1720839518889,0.33374232,3136.0,3135.9,3.17936013]
[1720839519090,1.43844209,3136.0,3135.9,3.17936013]
[1720839519270,1.43844204,3136.0,3135.9,3.17936013]
[1720839522460,0.33374232,3136.0,3135.9,3.17936013]
[1720839522659,1.43846362,3136.0,3135.9,3.17936013]
[1720839522871,0.33374232,3136.0,3135.9,3.17936013]
[1720839523194,1.43846185,3136.0,3135.9,3.17936013]
[1720839525496,1.43846417,3136.0,3135.9,3.17936013]
[1720839525888,1.43846446,3136.0,3135.9,3.17936013]
[1720839526396,1.43846446,3136.0,3135.9,0.94715013]
[1720839526605,3.78332702,3136.0,3135.9,0.94715013]
[1720839528104,3.78332702,3136.0,3135.9,0.13115013]
[1720839528396,6.56085972,3136.0,3135.9,0.13115013]
[1720839528705,4.21599716,3136.0,3135.9,0.13115013]
[1720839529204,6.5610139,3136.0,3135.9,0.13098372]
[1720839529397,3.11127502,3136.0,3135.9,0.13098372]
[1720839529565,4.21607771,3136.0,3135.7,0.816]
[1720839529768,3.44985828,3135.9,3135.7,0.816]
[1720839529964,1.10480269,3135.8,3135.7,0.816]
[1720839531188,1.10480269,3135.8,3135.7,5.2807]
[1720839531502,1.10480269,3135.8,3135.7,3.82342]
[1720839532493,1.10480269,3135.8,3135.7,3.04835]
[1720839532697,0.33374232,3136.0,3135.8,2.23227]
[1720839532880,2.20951914,3135.9,3135.8,2.23227]
[1720839533070,1.10475936,3135.9,3135.8,2.23227]
[1720839533277,1.10475715,3135.9,3135.8,2.23227]
[1720839535206,1.10475715,3135.9,3135.8,4.46455]
[1720839535383,2.67864112,3136.0,3135.9,2.23221]
[1720839535588,3.78340121,3136.0,3135.9,2.23221]
[1720839536309,3.78339039,3136.0,3135.9,2.23221]
[1720839539507,0.33374232,3136.0,3135.9,2.23221]
[1720839539711,3.78334776,3136.0,3135.9,2.23221]
[1720839541274,3.78334776,3136.0,3135.9,2.36313938]
[1720839542116,0.33374232,3136.0,3135.9,2.36313938]
[1720839542318,3.78334346,3136.0,3135.9,2.36313938]
[1720839542811,3.78337092,3136.0,3135.9,2.36313938]
[1720839545092,3.78344975,3136.0,3135.9,2.36313938]
[1720839545492,0.33374232,3136.0,3135.9,5.41134938]
[1720839545683,1.43841547,3136.0,3135.9,5.95248432]
[1720839545899,3.44828362,3136.0,3135.9,8.34058432]
[1720839547600,1.43841547,3136.0,3135.9,8.34058432]
[1720839547899,1.10467315,3136.0,3135.9,8.34058432]
[1720839549114,2.67821633,3136.5,3136.2,2.23197]
[1720839549416,1.10454912,3136.4,3136.2,2.23197]
[1720839549611,1.10454912,3136.3,3136.2,2.23197]
[1720839550928,1.10454912,3136.3,3136.2,6.85207]
[1720839551126,2.77882279,3136.3,3136.2,9.612079]
[1720839551420,1.10454912,3136.3,3136.2,12.612079]
[1720839552380,0.33369454,3137.0,3136.4,2.23185]
[1720839552587,1.67307819,3136.6,3136.5,4.46356]
[1720839552830,1.67307819,3136.6,3136.5,5.27956]
[1720839553036,0.33369454,3137.0,3136.8,2.23154]
[1720839553211,1.10438688,3136.9,3136.8,2.23154]
[1720839553513,0.33369454,3137.0,3136.8,2.23154]
[1720839553895,3.1116432,3136.9,3136.8,2.23154]
[1720839556218,3.1116432,3136.9,3136.8,2.36159279]
[1720839557522,1.10438685,3136.9,3136.8,2.36159279]
[1720839557689,0.33369454,3137.0,3136.8,2.36159279]
[1720839572435,1.10440253,3136.9,3136.8,2.36159279]
[1720839574849,1.10438673,3136.9,3136.8,2.36159279]
[1720839575248,1.10438349,3136.9,3136.8,2.36159279]
[1720839578849,1.10440567,3136.9,3136.8,2.36159279]
[1720839582218,1.10441448,3136.9,3136.8,2.36159279]
[1720839582619,0.33369454,3137.0,3136.8,2.36159279]
[1720839582861,1.10441163,3136.9,3136.8,2.36159279]
[1720839583550,3.10980609,3136.9,3136.8,2.36159279]
[1720839583934,1.10441163,3136.9,3136.8,2.36159279]
[1720839584129,3.10980609,3136.9,3136.8,2.36159279]
[1720839585334,0.33369454,3137.0,3136.8,2.36159279]
[1720839585545,2.00609947,3136.9,3136.8,2.36159279]
[1720839585752,3.11052579,3136.9,3136.8,2.36159279]
[1720839587656,1.10442632,3136.9,3136.8,2.36159279]
[1720839588623,1.10442632,3136.9,3136.8,0.13005279]
[1720839588624,1.71335334,3136.9,3136.8,0.13005279]
[1720839588867,6.36450272,3136.9,3136.8,0.13005279]
[1720839589155,2.3107,3136.8,3136.2,2.23198]
[1720839589361,2.3107,3136.4,3136.2,2.23198]
[1720839589555,1.10458919,3136.3,3136.2,2.23198]
[1720839590951,1.10458919,3136.3,3136.0,2.23213]
[1720839591150,3.44744935,3136.3,3136.0,2.23213]
[1720839591349,1.10458919,3136.2,3136.0,2.23213]
[1720839591587,3.44744935,3136.2,3136.0,2.23213]
[1720839591900,1.10458919,3136.1,3136.0,2.23213]
[1720839592542,1.10470591,3136.1,3136.0,2.23213]
[1720839593065,1.10470654,3136.1,3136.0,2.23213]
[1720839595548,1.10470881,3136.1,3136.0,2.23213]
[1720839595769,2.34290691,3136.3,3136.0,2.23213]
[1720839595949,1.10470832,3136.1,3136.0,2.23213]
[1720839597639,1.10469885,3136.1,3136.0,2.23213]
[1720839598342,3.11203728,3136.1,3136.0,2.23213]